bitfinex-derivatives/quotes_BTCF0:USTF0_20241110
["timestamp","ask_amount","ask_price","bid_price","bid_amount"]
[1731251854861,0.3608,79736.0,79725.0,0.062662]
[1731251854862,0.062655,79734.0,79725.0,0.062662]
[1731251855261,0.3608,79736.0,79724.0,0.03741389]
[1731251855466,0.062658,79730.0,79722.0,0.062664]
[1731251855669,0.3608,79736.0,79721.0,0.08478111]
[1731251855869,0.187974,79735.0,79727.0,0.06266]
[1731251856064,0.062656,79732.0,79721.0,0.08478111]
[1731251856667,0.12532,79738.0,79734.0,0.062654]
[1731251857067,0.12532,79740.0,79735.0,0.062654]
[1731251857265,0.062641,79751.0,79735.0,0.08478111]
[1731251857461,0.12532,79750.0,79741.0,0.08478111]
[1731251857769,0.37829006,79753.0,79741.0,0.08478111]
[1731251857963,0.12532,79751.0,79747.0,0.08478111]
[1731251858367,0.12532,79752.0,79747.0,0.14742511]
[1731251858964,0.12532,79752.0,79740.0,0.08478111]
[1731251859169,0.12532,79752.0,79734.0,0.08478111]
[1731251859365,0.12532,79752.0,79749.0,0.062643]
[1731251859768,0.02508591,79751.0,79749.0,0.062643]
[1731251860871,0.02508591,79751.0,79740.0,0.08478111]
[1731251861069,0.02508591,79751.0,79737.0,0.3608]
[1731251861070,0.08478111,79744.0,79737.0,0.3608]
[1731251861275,0.062649,79742.0,79736.0,0.062653]
[1731251861462,0.08478111,79744.0,79730.0,0.00064]
[1731251861668,0.062652,79738.0,79730.0,0.062657]
[1731251862174,0.062652,79738.0,79731.0,0.062657]
[1731251862175,0.423452,79738.0,79731.0,0.062657]
[1731251862674,0.423452,79738.0,79730.0,0.062657]
[1731251862880,0.062653,79737.0,79730.0,0.062657]
[1731251863063,0.3608,79738.0,79726.0,0.062661]
[1731251863064,0.062655,79734.0,79726.0,0.062661]
[1731251863265,0.3608,79729.0,79721.0,0.062665]
[1731251863974,0.3608,79729.0,79704.0,0.484598]
[1731251863975,0.08478111,79724.0,79711.0,9.427e-05]
[1731251864166,0.08478111,79724.0,79712.0,0.062672]
[1731251864670,0.46110111,79724.0,79711.0,9.427e-05]
[1731251864974,0.062662,79725.0,79711.0,9.427e-05]
[1731251864975,0.423472,79712.0,79711.0,9.427e-05]
[1731251866473,0.3608,79712.0,79700.0,0.1]
[1731251866674,0.423472,79712.0,79700.0,0.1]
[1731251867069,0.423472,79712.0,79702.0,0.06268]
[1731251867380,0.3608,79712.0,79700.0,0.1]
[1731251867576,0.423472,79712.0,79700.0,0.162681]
[1731251867781,0.423472,79712.0,79711.0,0.02509063]
[1731251868476,0.548872,79712.0,79711.0,0.02509063]
[1731251868779,0.5664718,79712.0,79711.0,0.02509063]
[1731251869873,0.4410718,79712.0,79711.0,0.02509063]
[1731251870276,0.5664718,79712.0,79711.0,0.02509063]
[1731251871472,0.4410718,79712.0,79711.0,0.02509063]
[1731251871673,0.5664718,79712.0,79711.0,0.02509063]
[1731251871975,0.4410718,79712.0,79711.0,0.02509063]
[1731251872280,0.5664718,79712.0,79711.0,0.02509063]
[1731251872582,0.5037998,79712.0,79711.0,0.02509063]
[1731251873677,0.3783998,79712.0,79711.0,0.02509063]
[1731251875870,0.5059998,79712.0,79711.0,0.02509063]
[1731251878070,0.5059998,79712.0,79711.0,0.05018126]
[1731251878977,0.5059998,79712.0,79700.0,0.1]
[1731251879184,0.08478111,79703.0,79700.0,0.1]
[1731251879680,0.3608,79705.0,79700.0,0.1]
[1731251881181,0.08478111,79701.0,79688.0,0.34910138]
[1731251881485,0.44558111,79689.0,79661.0,0.03741389]
[1731251881780,0.44558111,79689.0,79656.0,0.44558111]
[1731251881781,0.3608,79689.0,79674.0,0.08478111]
[1731251881984,0.3608,79689.0,79670.0,0.3608]
[1731251881985,0.3608,79689.0,79684.0,0.062693]
[1731251882175,0.3608,79699.0,79688.0,0.3608]
[1731251882372,0.3608,79699.0,79698.0,0.08478111]
[1731251882584,0.00012297,79699.0,79698.0,0.08478111]
[1731251882780,0.00012297,79699.0,79698.0,0.14746411]
[1731251883373,0.3608,79717.0,79698.0,0.14746411]
[1731251883574,0.3608,79727.0,79715.0,0.062669]
[1731251883783,0.3608,79727.0,79712.0,0.3608]
[1731251883978,0.3608,79727.0,79719.0,0.08478111]
[1731251884283,0.3608,79727.0,79713.0,0.0434]
[1731251884284,0.0250943,79724.0,79713.0,0.0434]
[1731251884495,0.0250943,79724.0,79717.0,0.062667]
[1731251884675,0.0250943,79724.0,79718.0,0.062667]
[1731251888377,0.0250943,79724.0,79720.0,0.062666]
[1731251888777,0.0250943,79724.0,79722.0,0.06094162]
[1731251890290,0.00011179,79726.0,79723.0,0.08478111]
[1731251890486,0.00011179,79726.0,79725.0,0.14744311]
[1731251891186,0.00011179,79726.0,79725.0,0.50824311]
[1731251891388,0.00011179,79726.0,79725.0,0.062662]
[1731251892093,0.00011179,79726.0,79718.0,0.062667]
[1731251892291,0.00011179,79726.0,79714.0,0.0431]
[1731251892292,0.3608,79719.0,79714.0,0.0431]
[1731251892782,0.36091179,79726.0,79714.0,0.0431]
[1731251893493,0.36091179,79726.0,79714.0,0.10577]
[1731251893783,0.36091179,79726.0,79718.0,0.062667]
[1731251894595,0.36091179,79726.0,79720.0,0.08478111]
[1731251894893,0.00011179,79726.0,79724.0,0.062662]
[1731251895088,0.3608,79742.0,79721.0,0.0443]
[1731251895298,0.3608,79742.0,79735.0,0.08478111]
[1731251895299,0.37887259,79742.0,79735.0,0.08478111]
[1731251895684,0.37887259,79742.0,79734.0,0.062654]
[1731251896086,0.00011524,79741.0,79734.0,0.062654]
[1731251896894,0.00011524,79741.0,79735.0,0.062653]
[1731251897281,0.02508739,79738.0,79731.0,0.0444]
[1731251897483,0.02508739,79738.0,79732.0,0.062656]
[1731251897683,0.3608,79735.0,79732.0,0.062656]
[1731251899090,0.3608,79735.0,79725.0,0.062661]
[1731251899292,0.3608,79735.0,79722.0,0.0456]
[1731251899494,0.3608,79735.0,79726.0,0.062661]
[1731251899696,0.062656,79732.0,79722.0,0.0456]
[1731251899896,0.3608,79727.0,79722.0,0.0456]
[1731251900195,0.062674,79710.0,79701.0,0.0431]
[1731251900397,0.062678,79705.0,79700.0,0.0250941]
[1731251900796,0.062679,79703.0,79700.0,0.0250941]
[1731251901492,0.3608,79706.0,79700.0,0.0250941]
[1731251901687,0.06268,79702.0,79700.0,0.0250941]
[1731251902293,9.002e-05,79701.0,79700.0,0.0250941]
[1731251902494,9.002e-05,79701.0,79673.0,0.0421]
[1731251902801,0.3608,79679.0,79663.0,0.4468]
[1731251903104,0.190259,79678.0,79664.0,0.062709]
[1731251903498,0.190259,79678.0,79663.0,0.0429]
[1731251903795,0.12756,79678.0,79667.0,0.1268406]
[1731251904191,0.12756,79678.0,79667.0,0.1895476]
[1731251905097,0.423498,79679.0,79668.0,0.062706]
[1731251905098,0.13056,79677.0,79668.0,0.062706]
[1731251906101,0.3616,79679.0,79667.0,0.1268406]
[1731251906293,0.13056,79677.0,79672.0,0.062703]
[1731251906893,0.3608,79679.0,79672.0,0.062703]
[1731251907194,0.13056,79678.0,79667.0,0.1268406]
[1731251908003,0.13056,79678.0,79676.0,0.02523841]
[1731251908306,0.193259,79678.0,79676.0,0.02523841]
[1731251909100,0.7374137,79677.0,79676.0,0.02523841]
[1731251909399,0.062711,79664.0,79651.0,0.062719]
[1731251909597,0.3608,79662.0,79651.0,0.062719]
[1731251910107,0.062713,79660.0,79651.0,0.062719]
[1731251910501,0.3608,79662.0,79650.0,0.0454]
[1731251910502,0.062715,79658.0,79650.0,0.0454]
[1731251910899,0.062716,79657.0,79649.0,0.062721]
[1731251911100,0.062716,79656.0,79645.0,0.3608]
[1731251911400,0.3608,79662.0,79643.0,0.062726]
[1731251911401,0.3608,79654.0,79643.0,0.062726]
[1731251911708,0.3608,79644.0,79634.0,0.00012771]
[1731251911908,0.1306,79643.0,79634.0,0.00012771]
[1731251912106,0.1306,79642.0,79636.0,0.062732]
[1731251913201,0.1306,79642.0,79634.0,0.00012771]
[1731251913504,0.062731,79638.0,79634.0,0.00012771]
[1731251914197,0.423532,79636.0,79634.0,0.00012771]
[1731251914700,0.1306,79635.0,79634.0,0.00012771]
[1731251914895,0.37961416,79636.0,79634.0,0.00012771]
[1731251915100,0.3608,79636.0,79634.0,0.12696831]
[1731251915408,0.3608,79636.0,79634.0,0.00012771]
[1731251916510,0.3608,79636.0,79634.0,0.06286071]
[1731251917214,0.3608,79636.0,79634.0,0.00012771]
[1731251917602,0.3608,79636.0,79634.0,0.02524261]
[1731251917906,0.3608,79636.0,79634.0,0.08797561]
[1731251918701,0.3608,79636.0,79634.0,0.02524261]
[1731251919705,0.02511437,79638.0,79637.0,0.062731]
[1731251919901,0.3608,79655.0,79637.0,0.4876406]
[1731251920105,0.01772953,79655.0,79645.0,0.062725]
[1731251920309,0.13064,79654.0,79645.0,0.062725]
[1731251920509,0.13064,79654.0,79640.0,0.062728]
[1731251920815,0.02511437,79646.0,79634.0,0.02524261]
[1731251921115,0.13064,79645.0,79644.0,0.062725]
[1731251921510,0.02511437,79646.0,79644.0,0.062725]
[1731251921712,0.01772953,79655.0,79650.0,0.062721]
[1731251921905,0.01772953,79655.0,79644.0,0.36148]
[1731251921906,0.14836953,79655.0,79644.0,0.36148]
[1731251922100,0.14836953,79655.0,79651.0,0.06272]
[1731251922305,0.01772953,79655.0,79651.0,0.06272]
[1731251922611,0.13064,79657.0,79651.0,0.06272]
[1731251922909,0.02511437,79659.0,79651.0,0.06272]
[1731251923112,0.3608,79666.0,79652.0,0.4876406]
[1731251923412,0.3608,79666.0,79665.0,0.062709]
[1731251924003,0.14812132,79670.0,79668.0,0.062707]
[1731251924204,0.00010153,79669.0,79668.0,0.062707]
[1731251925215,0.00010153,79669.0,79668.0,0.1895476]
[1731251925606,0.3608,79711.0,79669.0,0.37656]
[1731251925806,0.00088,79691.0,79689.0,0.42349]
[1731251926015,0.3608,79703.0,79689.0,0.3608]
[1731251926207,0.3608,79703.0,79696.0,0.062684]
[1731251926413,0.3608,79703.0,79699.0,0.062682]
[1731251926613,0.02511437,79700.0,79699.0,0.062682]
[1731251929624,7.498e-05,79702.0,79699.0,0.062682]
[1731251929625,7.498e-05,79702.0,79701.0,0.062681]
[1731251929917,7.498e-05,79702.0,79701.0,0.1895216]
[1731251932217,0.208,79771.0,79701.0,0.1895216]
[1731251932218,0.1306,79727.0,79726.0,0.062661]
[1731251933116,0.062655,79734.0,79726.0,0.062661]
[1731251933311,0.3608,79730.0,79710.0,0.2161406]
[1731251933515,0.3608,79730.0,79714.0,0.06267]
[1731251933719,0.3608,79730.0,79726.0,0.062661]
[1731251934423,0.3608,79730.0,79713.0,0.3608]
[1731251934729,0.3608,79730.0,79729.0,0.062659]
[1731251934916,0.13316,79735.0,79732.0,0.062656]
[1731251935425,0.13316,79737.0,79732.0,0.062656]
[1731251936127,0.3787706,79738.0,79725.0,0.3608]
[1731251936325,0.13316,79737.0,79730.0,0.062657]
[1731251936623,0.3795706,79738.0,79725.0,0.3608]
[1731251936825,0.3608,79738.0,79737.0,0.062652]
[1731251937822,0.3608,79738.0,79731.0,0.062657]
[1731251938415,0.3608,79738.0,79725.0,0.3608]
[1731251938616,0.3608,79738.0,79736.0,0.062653]
[1731251938817,0.02511437,79743.0,79741.0,0.062649]
[1731251939730,0.02511437,79743.0,79729.0,0.1268406]
[1731251939923,0.02511437,79743.0,79736.0,0.062653]
[1731251940127,0.02511437,79743.0,79725.0,0.3608]
[1731251940331,0.02511437,79743.0,79738.0,0.062651]
[1731251941330,0.062654,79735.0,79716.0,0.062668]
[1731251941529,0.3608,79739.0,79714.0,0.4876406]
[1731251941730,0.3608,79739.0,79729.0,0.3608]
[1731251942031,0.02511437,79743.0,79741.0,0.062649]
[1731251943024,0.02511437,79743.0,79735.0,0.062653]
[1731251943328,0.08776237,79743.0,79735.0,0.062653]
[1731251943529,0.062651,79739.0,79729.0,0.3608]
[1731251944027,0.062651,79739.0,79733.0,0.062655]
[1731251944225,0.3608,79737.0,79727.0,0.06266]
[1731251944429,0.3608,79729.0,79720.0,0.062665]
[1731251944929,0.3608,79729.0,79713.0,0.0424]
[1731251945133,0.3608,79729.0,79726.0,0.062661]
[1731251945833,0.3608,79729.0,79716.0,0.062669]
[1731251946133,0.3608,79729.0,79726.0,0.062661]
[1731251946634,0.423459,79729.0,79726.0,0.062661]
[1731251946925,0.062665,79721.0,79715.0,0.42347]
[1731251947124,0.062661,79727.0,79715.0,0.3608]
[1731251947526,0.062663,79723.0,79715.0,0.3608]
[1731251947729,0.062661,79726.0,79721.0,0.062664]
[1731251947923,0.3608,79729.0,79715.0,0.3608]
[1731251948134,0.3608,79729.0,79721.0,0.062665]
[1731251949821,0.062661,79726.0,79721.0,0.062665]
[1731251950841,0.3608,79729.0,79705.0,0.00211]
[1731251950842,0.3608,79722.0,79705.0,0.00211]
[1731251951029,0.423477,79706.0,79705.0,0.00211]
[1731251952928,0.44092926,79706.0,79705.0,0.00211]
[1731251953128,0.3764,79705.0,79681.0,0.105496]
[1731251953338,0.3608,79696.0,79684.0,0.3608]
[1731251953835,0.3608,79696.0,79689.0,0.06269]
[1731251954037,0.00014853,79695.0,79689.0,0.06269]
[1731251954634,0.00014853,79695.0,79681.0,0.0428]
[1731251955045,0.00014853,79695.0,79691.0,0.062688]
[1731251955430,0.00014853,79695.0,79692.0,0.062687]
[1731251956433,0.00010853,79695.0,79692.0,0.062687]
[1731251956634,0.00010853,79695.0,79667.0,0.3608]
[1731251956635,0.062692,79687.0,79667.0,0.3608]
[1731251956843,0.00010853,79695.0,79669.0,0.0432]
[1731251956844,0.3608,79686.0,79669.0,0.0432]
[1731251957139,0.3608,79691.0,79676.0,0.0431]
[1731251957336,0.00010853,79695.0,79689.0,0.06269]
[1731251957337,0.13322853,79695.0,79689.0,0.06269]
[1731251957843,0.00010853,79695.0,79683.0,0.3608]
[1731251958235,0.00010853,79695.0,79693.0,0.062687]
[1731251959942,0.00010853,79695.0,79686.0,0.062692]
[1731251960144,0.00010853,79695.0,79687.0,0.062691]
[1731251960145,0.06279353,79695.0,79687.0,0.062691]
[1731251960338,0.06279353,79695.0,79688.0,0.062691]
[1731251960646,0.06279353,79695.0,79676.0,0.0431]
[1731251960647,0.00010853,79695.0,79676.0,0.0431]
[1731251960947,0.00010853,79695.0,79692.0,0.062688]
[1731251961138,0.00010853,79695.0,79693.0,0.062687]
[1731251962048,0.37644,79694.0,79676.0,0.0431]
[1731251962343,0.08466466,79685.0,79678.0,0.062698]
[1731251962648,0.062696,79682.0,79678.0,0.062699]
[1731251962848,0.3608,79686.0,79676.0,0.0431]
[1731251963158,0.3608,79686.0,79683.0,0.062695]
[1731251963643,0.3608,79686.0,79685.0,0.062693]
[1731251963836,0.062689,79691.0,79687.0,0.062692]
[1731251964038,0.38600525,79695.0,79677.0,0.08466466]
[1731251964239,0.13848,79694.0,79693.0,0.062687]
[1731251964642,0.13844,79694.0,79693.0,0.062687]
[1731251966240,0.42439453,79695.0,79693.0,0.062687]
[1731251966441,0.42359453,79695.0,79693.0,0.062687]
[1731251966645,0.36090853,79695.0,79682.0,0.3608]
[1731251967147,0.062686,79694.0,79683.0,0.062695]
[1731251967346,0.062686,79694.0,79691.0,0.062688]
[1731251967743,0.36090853,79695.0,79686.0,0.062692]
[1731251968050,0.062691,79688.0,79686.0,0.062692]
[1731251968253,0.36090853,79695.0,79688.0,0.062691]
[1731251968254,0.062686,79694.0,79688.0,0.062691]
[1731251968436,0.062686,79694.0,79682.0,0.3608]
[1731251968437,0.062686,79694.0,79689.0,0.06269]
[1731251968950,0.36090853,79695.0,79685.0,0.08466466]
[1731251969148,0.36090853,79695.0,79694.0,0.062686]
[1731251969545,0.42359353,79695.0,79688.0,0.06269]
[1731251969849,0.42359353,79695.0,79690.0,0.062689]
[1731251970251,0.42359353,79695.0,79680.0,0.3608]
[1731251970746,0.42359353,79695.0,79694.0,0.062686]
[1731251970747,0.36090853,79695.0,79694.0,0.062686]
[1731251970947,0.00010853,79695.0,79694.0,0.062686]
[1731251971848,0.00010853,79695.0,79694.0,0.423486]
[1731251972041,0.02509681,79706.0,79705.0,0.062677]
[1731251972237,0.13848,79716.0,79694.0,0.423486]
[1731251972238,0.062666,79721.0,79704.0,0.3608]
[1731251972443,0.16357767,79725.0,79723.0,0.062663]
[1731251973061,0.13848,79725.0,79723.0,0.062663]
[1731251973650,0.42346,79728.0,79723.0,0.062663]
[1731251974343,0.062661,79727.0,79723.0,0.062663]
[1731251974547,0.3608,79728.0,79718.0,0.0454]
[1731251974746,0.3608,79728.0,79724.0,0.062662]
[1731251976652,0.3608,79728.0,79726.0,0.062661]
[1731251976952,0.13848,79733.0,79730.0,0.062658]
[1731251977650,0.02508366,79731.0,79730.0,0.062658]
[1731251978753,0.0008,79736.0,79734.0,0.062655]
[1731251978957,0.02509767,79738.0,79734.0,0.062655]
[1731251979149,0.01816976,79737.0,79728.0,0.062659]
[1731251979350,0.062657,79731.0,79728.0,0.062659]
[1731251979553,0.062659,79729.0,79727.0,0.3608]
[1731251979855,0.062661,79727.0,79722.0,0.062663]
[1731251980451,0.062661,79727.0,79723.0,0.062663]
[1731251981358,0.062661,79726.0,79723.0,0.062663]
[1731251981857,0.37849715,79728.0,79726.0,0.062661]
[1731251982158,0.37849715,79728.0,79720.0,0.062666]
[1731251982359,0.062663,79724.0,79720.0,0.062666]
[1731251983044,0.14732966,79721.0,79717.0,0.062668]
[1731251983246,0.062666,79719.0,79716.0,0.3608]
[1731251983446,0.08466466,79721.0,79716.0,0.3608]
[1731251983447,0.062667,79718.0,79716.0,0.3608]
[1731251983653,0.08466466,79721.0,79716.0,0.3608]
[1731251984458,0.13844,79726.0,79716.0,0.3608]
[1731251984753,0.13844,79726.0,79725.0,0.062662]
[1731251985745,0.13844,79733.0,79723.0,0.08466466]
[1731251985945,0.13844,79733.0,79728.0,0.062659]
[1731251986155,0.561896,79733.0,79729.0,0.062658]
[1731251986354,0.423456,79733.0,79729.0,0.062658]
[1731251986550,0.02509767,79738.0,79724.0,0.062662]
[1731251986551,0.13844,79735.0,79724.0,0.062662]
[1731251986754,0.13844,79735.0,79724.0,0.3608]
[1731251986959,0.201094,79735.0,79731.0,0.062657]
[1731251987158,0.201094,79735.0,79724.0,0.3608]
[1731251987349,0.02509767,79738.0,79724.0,0.3608]
[1731251987350,0.02509767,79738.0,79730.0,0.08466466]
[1731251987558,0.02509767,79738.0,79737.0,0.062652]
[1731251987559,0.16353767,79738.0,79737.0,0.062652]
[1731251988053,0.02509767,79738.0,79737.0,0.062652]
[1731251988659,0.0188634,79742.0,79741.0,0.062649]
[1731251988956,0.0180634,79742.0,79741.0,0.062649]
[1731251989161,0.1384,79747.0,79731.0,0.4022]
[1731251989457,0.062647,79744.0,79742.0,0.062648]
[1731251990360,0.02508447,79743.0,79742.0,0.062648]
[1731251992360,0.44853247,79743.0,79742.0,0.062648]
[1731251992561,0.38588447,79743.0,79731.0,0.0414]
[1731251992867,0.08466466,79740.0,79736.0,0.062653]
[1731251993168,0.14731566,79740.0,79736.0,0.062653]
[1731251993566,0.062651,79740.0,79736.0,0.062653]
[1731251994155,0.062652,79738.0,79732.0,0.062656]
[1731251994464,0.062652,79738.0,79731.0,0.0414]
[1731251994662,0.062652,79738.0,79735.0,0.062654]
[1731251994960,0.3608,79736.0,79731.0,0.062657]
[1731251995154,0.062654,79735.0,79731.0,0.062657]
[1731251995466,0.062654,79735.0,79727.0,0.0250856]
[1731251995662,0.062654,79735.0,79733.0,0.062655]
[1731251996361,0.3608,79736.0,79727.0,0.0250856]
[1731251996562,0.3608,79736.0,79735.0,0.062654]
[1731251997069,0.38588447,79743.0,79737.0,0.062652]
[1731251997364,0.38588447,79743.0,79727.0,0.0250856]
[1731251997755,0.062649,79742.0,79733.0,0.062655]
[1731251998068,0.062653,79737.0,79733.0,0.062655]
[1731251998466,0.062653,79737.0,79727.0,0.0250856]
[1731251998661,0.062653,79737.0,79734.0,0.062654]
[1731251998962,0.062654,79736.0,79734.0,0.062654]
[1731251999563,0.3608,79735.0,79734.0,0.062654]
[1731251999766,0.3608,79735.0,79727.0,0.0250856]
[1731251999966,0.08466466,79730.0,79727.0,0.0250856]
[1731252000160,0.062659,79729.0,79727.0,0.0250856]
[1731252000362,0.423455,79735.0,79728.0,0.062659]
[1731252000560,0.423455,79735.0,79727.0,0.0250856]
[1731252000561,0.49616,79735.0,79727.0,0.0250856]
[1731252000868,0.08466466,79728.0,79727.0,0.0250856]
[1731252001065,0.50812366,79728.0,79727.0,0.0246856]
[1731252001566,0.53990572,79728.0,79727.0,0.01683024]
[1731252001770,0.53990572,79728.0,79711.0,0.062673]
[1731252001771,0.47723295,79728.0,79711.0,0.062673]
[1731252001978,0.06267,79715.0,79707.0,0.0807399]
[1731252002269,0.062668,79718.0,79707.0,0.0180639]
[1731252002473,0.062668,79718.0,79712.0,0.062672]
[1731252002972,0.062668,79718.0,79708.0,0.062675]
[1731252003174,0.13536,79720.0,79707.0,0.08466466]
[1731252003472,0.3608,79721.0,79719.0,0.062666]
[1731252003671,0.4962,79732.0,79724.0,0.062662]
[1731252003872,0.03183446,79731.0,79724.0,0.062662]
[1731252004173,0.03185286,79730.0,79726.0,0.08466466]
[1731252004478,0.01801218,79736.0,79734.0,0.062654]
[1731252004776,0.03207393,79735.0,79734.0,0.062654]
[1731252004977,0.3608,79735.0,79727.0,0.0446]
[1731252005276,0.3608,79735.0,79724.0,0.062662]
[1731252005277,0.062658,79730.0,79724.0,0.062662]
[1731252005580,0.44546466,79727.0,79719.0,0.3608]
[1731252005875,0.14732966,79721.0,79713.0,0.062671]
[1731252006078,0.062666,79720.0,79713.0,0.062671]
[1731252006275,0.062666,79720.0,79706.0,0.3608]
[1731252006583,0.062666,79720.0,79714.0,0.06267]
[1731252006775,0.104861,79726.0,79707.0,0.08466466]
[1731252006982,0.03148355,79725.0,79714.0,0.08466466]
[1731252007169,0.062661,79726.0,79714.0,0.08466466]
[1731252007881,0.062662,79725.0,79719.0,0.062666]
[1731252008278,0.3608,79727.0,79714.0,0.08466466]
[1731252008577,0.3608,79728.0,79719.0,0.062666]
[1731252008776,0.3608,79728.0,79706.0,0.3608]
[1731252008777,0.062666,79720.0,79706.0,0.3608]
[1731252008978,0.062666,79720.0,79717.0,0.062668]
[1731252010275,0.062666,79720.0,79718.0,0.062667]
[1731252010980,0.062666,79720.0,79706.0,0.3608]
[1731252010981,0.062663,79724.0,79708.0,0.062675]
[1731252011182,0.062663,79724.0,79711.0,0.08466466]
[1731252011478,0.3608,79728.0,79727.0,0.06266]
[1731252011677,0.3608,79728.0,79723.0,0.08466466]
[1731252011678,0.1354,79733.0,79732.0,0.062656]
[1731252012673,0.198055,79733.0,79732.0,0.062656]
[1731252013469,0.3608,79743.0,79732.0,0.062656]
[1731252013675,0.3608,79743.0,79729.0,0.08466466]
[1731252013676,0.062649,79741.0,79736.0,0.062653]
[1731252013875,0.03241855,79740.0,79736.0,0.062653]
[1731252014085,0.37902271,79743.0,79736.0,0.14731766]
[1731252014386,0.44167071,79743.0,79736.0,0.14731766]
[1731252014585,0.44247071,79743.0,79736.0,0.062653]
[1731252014986,0.062649,79741.0,79736.0,0.062653]
[1731252015584,0.01822271,79743.0,79736.0,0.062653]
[1731252015775,0.062652,79738.0,79736.0,0.062653]
[1731252017175,0.08466466,79742.0,79730.0,0.062657]
[1731252017380,0.3608,79744.0,79727.0,0.3608]
[1731252017381,0.062659,79729.0,79727.0,0.3608]
[1731252017580,0.06266,79728.0,79725.0,0.062662]
[1731252017781,0.03185898,79727.0,79725.0,0.062662]
[1731252017986,0.1354,79733.0,79717.0,0.062668]
[1731252018281,0.03199303,79732.0,79718.0,0.08466466]
[1731252018588,0.1354,79733.0,79730.0,0.062658]
[1731252018589,0.03199303,79731.0,79730.0,0.062658]
[1731252018781,0.03199303,79732.0,79730.0,0.062658]
[1731252018982,0.03199303,79731.0,79730.0,0.062658]
[1731252019184,0.03199303,79731.0,79725.0,0.062662]
[1731252019379,0.06266,79727.0,79725.0,0.062662]
[1731252019580,0.08466466,79729.0,79725.0,0.062662]
[1731252019882,0.062661,79726.0,79725.0,0.062662]
[1731252020879,0.062662,79725.0,79720.0,0.062665]
[1731252021088,0.062662,79725.0,79722.0,0.062664]
[1731252021584,0.062664,79723.0,79719.0,0.062666]
[1731252021779,0.3608,79728.0,79718.0,0.08466466]
[1731252021976,0.3608,79728.0,79716.0,0.3608]
[1731252021977,0.1354,79730.0,79729.0,0.062659]
[1731252022582,0.37927863,79736.0,79735.0,0.062654]
[1731252022783,0.41080493,79736.0,79735.0,0.062654]
[1731252023184,0.37843863,79736.0,79735.0,0.062654]
[1731252023486,0.41079817,79736.0,79735.0,0.062654]
[1731252024191,0.39315954,79736.0,79735.0,0.062654]
[1731252026389,0.39316849,79736.0,79735.0,0.062654]
[1731252027683,0.3608,79736.0,79735.0,0.062654]
[1731252029884,0.04315547,79737.0,79731.0,0.1311]
[1731252030079,0.02508524,79737.0,79736.0,0.062653]
[1731252031386,0.062655,79734.0,79733.0,0.062655]
[1731252031987,0.02508524,79737.0,79731.0,0.40584]
[1731252032193,0.02508524,79737.0,79735.0,0.062654]
[1731252032482,0.08773724,79737.0,79735.0,0.062654]
[1731252032886,0.02508524,79737.0,79736.0,0.062653]
[1731252033095,0.03294523,79740.0,79736.0,0.3608]
[1731252033391,0.01748082,79746.0,79745.0,0.062646]
[1731252033594,0.03333813,79746.0,79739.0,0.08466466]
[1731252033797,0.08772724,79750.0,79749.0,0.062643]
[1731252033993,0.1209563,79750.0,79749.0,0.05035825]
[1731252034293,0.0583143,79750.0,79740.0,0.0418]
[1731252034491,0.03322906,79749.0,79736.0,0.3608]
[1731252034690,0.08466466,79737.0,79731.0,0.40584]
[1731252034890,0.08466466,79743.0,79731.0,0.4052]
[1731252035089,0.08466466,79743.0,79736.0,0.062653]
[1731252035090,0.06265,79740.0,79736.0,0.062653]
[1731252035291,0.3608,79747.0,79737.0,0.062652]
[1731252035491,0.3608,79747.0,79736.0,0.08466466]
[1731252035492,0.03300954,79746.0,79743.0,0.062647]
[1731252035791,0.03308796,79745.0,79738.0,0.3608]
[1731252035998,0.03308796,79744.0,79743.0,0.062648]
[1731252036195,0.49116,79747.0,79746.0,0.062645]
[1731252036397,0.52526805,79747.0,79746.0,0.062645]
[1731252036596,0.52434805,79747.0,79746.0,0.062645]
[1731252037390,0.60901271,79747.0,79746.0,0.062645]
[1731252037595,0.60901271,79747.0,79741.0,0.062649]
[1731252037897,0.08466466,79742.0,79741.0,0.062649]
[1731252038103,0.11785271,79742.0,79741.0,0.062649]
[1731252038693,0.18050071,79742.0,79741.0,0.062649]
[1731252038893,0.18050071,79742.0,79730.0,0.3608]
[1731252039093,0.492,79747.0,79736.0,0.062653]
[1731252039094,0.3608,79739.0,79736.0,0.062653]
[1731252039291,0.3608,79739.0,79730.0,0.423057]
[1731252039292,0.14731966,79734.0,79730.0,0.423057]
[1731252039894,0.14731966,79734.0,79716.0,0.08466466]
[1731252039895,0.062667,79719.0,79709.0,0.062674]
[1731252040203,0.13032,79721.0,79714.0,0.06267]
[1731252040803,0.03211076,79720.0,79714.0,0.06267]
[1731252041110,0.031796,79719.0,79714.0,0.06267]
[1731252041404,0.06267,79715.0,79709.0,0.062674]
[1731252041797,0.062666,79720.0,79712.0,0.062672]
[1731252041996,0.23270102,79721.0,79707.0,0.3608]
[1731252042308,0.06267,79715.0,79709.0,0.062674]
[1731252043499,0.06267,79715.0,79707.0,0.3608]
[1731252043800,0.14803636,79721.0,79712.0,0.062672]
[1731252044005,0.062667,79719.0,79707.0,0.3608]
[1731252044397,0.062667,79719.0,79708.0,0.062675]
[1731252044609,0.062667,79719.0,79707.0,0.3608]
[1731252044805,0.062667,79718.0,79713.0,0.062671]
[1731252045004,0.14803636,79721.0,79707.0,0.3608]
[1731252045198,0.14803636,79721.0,79715.0,0.062669]
[1731252045504,0.062667,79719.0,79715.0,0.062669]
[1731252046012,0.14803636,79721.0,79715.0,0.062669]
[1731252046212,0.062667,79718.0,79715.0,0.062669]
[1731252046410,0.14803636,79721.0,79717.0,0.062668]
[1731252046905,0.01771636,79721.0,79715.0,0.08466466]
[1731252047112,0.062657,79731.0,79726.0,0.06266]
[1731252047301,0.09471682,79730.0,79727.0,0.06266]
[1731252047498,0.062659,79728.0,79727.0,0.06266]
[1731252047706,0.09471782,79728.0,79727.0,0.06266]
[1731252047910,0.03205882,79728.0,79727.0,0.06266]